[Event "Late-Titled-Tuesday-Blitz-March-26-2024"]
[Site "Chess.com"]
[Date "2024.03.26"]
[Round "6"]
[White "MariusBieliauskas"]
[Black "VD_coach"]
[Result "0-1"]
[WhiteElo "2335"]
[BlackElo "2507"]
[TimeControl "180+1"]
[EndTime "15:08:34 PDT"]
[Termination "VD_coach won on time"]

1. d4 {[%clk 0:03:00]} 1... Nf6 {[%clk 0:02:59.5]} 2. c3 {[%clk 0:03:00.3]} 2...
g6 {[%clk 0:02:59]} 3. Bf4 {[%clk 0:02:59.5]} 3... Bg7 {[%clk 0:02:59.5]} 4. Nd2
{[%clk 0:02:59.3]} 4... O-O {[%clk 0:03:00]} 5. e4 {[%clk 0:02:58.7]} 5... d6
{[%clk 0:03:00.4]} 6. Ngf3 {[%clk 0:02:58.6]} 6... Nc6 {[%clk 0:03:00.6]} 7. Bc4
{[%clk 0:02:55.9]} 7... Nd7 {[%clk 0:02:56.7]} 8. O-O {[%clk 0:02:54.2]} 8... e6
{[%clk 0:02:55.3]} 9. Re1 {[%clk 0:02:50.8]} 9... b6 {[%clk 0:02:55.4]} 10. h3
{[%clk 0:02:48.7]} 10... Bb7 {[%clk 0:02:55.3]} 11. Bf1 {[%clk 0:02:46.4]} 11...
e5 {[%clk 0:02:54.9]} 12. dxe5 {[%clk 0:02:45.4]} 12... Ndxe5 {[%clk 0:02:54.5]}
13. Nxe5 {[%clk 0:02:43.9]} 13... Nxe5 {[%clk 0:02:54.1]} 14. Qc2 {[%clk
0:02:39.5]} 14... Re8 {[%clk 0:02:52.7]} 15. a4 {[%clk 0:02:38.6]} 15... a5
{[%clk 0:02:52.1]} 16. Rad1 {[%clk 0:02:37.6]} 16... Qe7 {[%clk 0:02:49.2]} 17.
Bb5 {[%clk 0:02:28.9]} 17... c6 {[%clk 0:02:46]} 18. Bf1 {[%clk 0:02:28.2]}
18... Rad8 {[%clk 0:02:46]} 19. Nc4 {[%clk 0:02:23.2]} 19... Nxc4 {[%clk
0:02:22.7]} 20. Bxc4 {[%clk 0:02:22.1]} 20... d5 {[%clk 0:02:23.4]} 21. exd5
{[%clk 0:02:00.2]} 21... Qxe1+ {[%clk 0:02:24.3]} 22. Rxe1 {[%clk 0:01:59.9]}
22... Rxe1+ {[%clk 0:02:22.3]} 23. Kh2 {[%clk 0:02:00.1]} 23... cxd5 {[%clk
0:02:13.8]} 24. Qd2 {[%clk 0:01:43.1]} 24... Re4 {[%clk 0:01:47.3]} 25. Bd3
{[%clk 0:01:35.2]} 25... Re6 {[%clk 0:01:43.5]} 26. Be3 {[%clk 0:01:11.2]} 26...
d4 {[%clk 0:01:36.9]} 27. Bxd4 {[%clk 0:01:08.8]} 27... Bxd4 {[%clk 0:01:34.4]}
28. cxd4 {[%clk 0:01:08.8]} 28... Rxd4 {[%clk 0:01:34.8]} 29. Qc3 {[%clk
0:01:07.1]} 29... Red6 {[%clk 0:01:30.9]} 30. Bc4 {[%clk 0:00:57.1]} 30... Kg7
{[%clk 0:01:23.4]} 31. b3 {[%clk 0:00:56.5]} 31... Kg8 {[%clk 0:01:16.2]} 32.
Qe3 {[%clk 0:00:53.7]} 32... Rd7 {[%clk 0:01:08.5]} 33. Qe8+ {[%clk 0:00:50.9]}
33... Kg7 {[%clk 0:01:08.7]} 34. Qe5+ {[%clk 0:00:51.1]} 34... Kf8 {[%clk
0:00:55.3]} 35. Qh8+ {[%clk 0:00:48.4]} 35... Ke7 {[%clk 0:00:55.5]} 36. Qxh7
{[%clk 0:00:46.9]} 36... Kd8 {[%clk 0:00:52.5]} 37. Qh8+ {[%clk 0:00:43.4]}
37... Kc7 {[%clk 0:00:52.6]} 38. Qe5+ {[%clk 0:00:43.5]} 38... Kc8 {[%clk
0:00:51.7]} 39. Qe8+ {[%clk 0:00:43.1]} 39... Kc7 {[%clk 0:00:51.6]} 40. Qe5+
{[%clk 0:00:42.4]} 40... R4d6 {[%clk 0:00:51.7]} 41. h4 {[%clk 0:00:35.6]} 41...
Bc6 {[%clk 0:00:51.4]} 42. g4 {[%clk 0:00:24.8]} 42... Kb7 {[%clk 0:00:50.4]}
43. h5 {[%clk 0:00:24]} 43... f5 {[%clk 0:00:31.3]} 44. gxf5 {[%clk 0:00:21.4]}
44... gxf5 {[%clk 0:00:29.5]} 45. Qxf5 {[%clk 0:00:15]} 45... Rd4 {[%clk
0:00:27.2]} 46. Qf6 {[%clk 0:00:11.1]} 46... Rg4 {[%clk 0:00:20.6]} 47. f3
{[%clk 0:00:11.2]} 47... Rgd4 {[%clk 0:00:12.9]} 48. h6 {[%clk 0:00:10.4]} 48...
Rd2+ {[%clk 0:00:08.4]} 49. Kg3 {[%clk 0:00:10]} 49... Rh7 {[%clk 0:00:07.2]}
50. Qg6 {[%clk 0:00:09.2]} 50... Rdd7 {[%clk 0:00:06.1]} 51. Bg8 {[%clk
0:00:09.1]} 51... Rhe7 {[%clk 0:00:03.8]} 52. h7 {[%clk 0:00:09.3]} 52... Rg7
{[%clk 0:00:03.5]} 53. h8=Q {[%clk 0:00:08.8]} 53... Rxg6+ {[%clk 0:00:03.1]}
54. Kf2 {[%clk 0:00:09.1]} 54... Rgd6 {[%clk 0:00:02.5]} 55. Bc4 {[%clk
0:00:08.2]} 55... Rd2+ {[%clk 0:00:03.4]} 56. Ke3 {[%clk 0:00:07.3]} 56... R2d6
{[%clk 0:00:04.3]} 57. f4 {[%clk 0:00:07.2]} 57... Re7+ {[%clk 0:00:04.7]} 58.
Kf2 {[%clk 0:00:06.9]} 58... Red7 {[%clk 0:00:05.6]} 59. Kg3 {[%clk 0:00:07]}
59... Rd2 {[%clk 0:00:06]} 60. Qe5 {[%clk 0:00:06.3]} 60... Rg2+ {[%clk
0:00:06.3]} 61. Kh3 {[%clk 0:00:06.8]} 61... Rh7+ {[%clk 0:00:06.6]} 0-1

[Event "Late-Titled-Tuesday-Blitz-March-26-2024"]
[Site "Chess.com"]
[Date "2024.03.26"]
[Round "6"]
[White "DrVelja"]
[Black "Hikaru"]
[Result "1/2-1/2"]
[WhiteElo "3025"]
[BlackElo "3277"]
[TimeControl "180+1"]
[EndTime "15:08:37 PDT"]
[Termination "Game drawn by repetition"]

1. e4 {[%clk 0:03:00.9]} 1... c6 {[%clk 0:02:59.2]} 2. d4 {[%clk 0:02:59.2]}
2... d5 {[%clk 0:02:59.4]} 3. e5 {[%clk 0:02:59.5]} 3... Bf5 {[%clk 0:02:59.6]}
4. h4 {[%clk 0:03:00.1]} 4... h5 {[%clk 0:02:59.6]} 5. Bd3 {[%clk 0:03:00.1]}
5... Bxd3 {[%clk 0:03:00]} 6. Qxd3 {[%clk 0:03:01]} 6... Qa5+ {[%clk 0:03:00.1]}
7. Nd2 {[%clk 0:02:58.8]} 7... Qa6 {[%clk 0:03:00.2]} 8. e6 {[%clk 0:02:56.7]}
8... Qxd3 {[%clk 0:03:00]} 9. exf7+ {[%clk 0:02:57.3]} 9... Kxf7 {[%clk
0:03:00.9]} 10. cxd3 {[%clk 0:02:57.9]} 10... e6 {[%clk 0:03:01.3]} 11. Ndf3
{[%clk 0:02:57.9]} 11... Bd6 {[%clk 0:02:55.2]} 12. Nh3 {[%clk 0:02:57]} 12...
Nh6 {[%clk 0:02:55.1]} 13. Bf4 {[%clk 0:02:53.7]} 13... Bb4+ {[%clk 0:02:52.3]}
14. Bd2 {[%clk 0:02:50]} 14... Bxd2+ {[%clk 0:02:48.6]} 15. Kxd2 {[%clk
0:02:50]} 15... Nd7 {[%clk 0:02:43.6]} 16. Nfg5+ {[%clk 0:02:37.9]} 16... Kf6
{[%clk 0:02:43.9]} 17. Nf4 {[%clk 0:02:38.4]} 17... Nf5 {[%clk 0:02:44.4]} 18.
Nfxe6 {[%clk 0:02:37]} 18... Rae8 {[%clk 0:02:40.7]} 19. Rae1 {[%clk 0:02:35.7]}
19... Re7 {[%clk 0:02:30]} 20. g3 {[%clk 0:01:44.6]} 20... g6 {[%clk 0:02:06.6]}
21. Re2 {[%clk 0:01:43.6]} 21... Rhe8 {[%clk 0:01:42.6]} 22. Rhe1 {[%clk
0:01:42.9]} 22... Nb6 {[%clk 0:01:41.1]} 23. Nf4 {[%clk 0:01:24.3]} 23... Rxe2+
{[%clk 0:01:36.1]} 24. Rxe2 {[%clk 0:01:25.2]} 24... Rxe2+ {[%clk 0:01:36.6]}
25. Nxe2 {[%clk 0:01:26.1]} 25... Nd7 {[%clk 0:01:33]} 26. Nf3 {[%clk
0:01:21.7]} 26... Nb8 {[%clk 0:01:18.3]} 27. Nf4 {[%clk 0:01:19]} 27... Na6
{[%clk 0:01:18.2]} 28. Kc3 {[%clk 0:00:46.9]} 28... Nc7 {[%clk 0:01:17.8]} 29.
a4 {[%clk 0:00:47.6]} 29... Ne7 {[%clk 0:00:57]} 30. Ne5 {[%clk 0:00:43.4]}
30... Kf5 {[%clk 0:00:57.2]} 31. b4 {[%clk 0:00:38.1]} 31... Ne8 {[%clk
0:00:34.2]} 32. f3 {[%clk 0:00:33.6]} 32... Nd6 {[%clk 0:00:31.8]} 33. Ng2
{[%clk 0:00:33.2]} 33... Ke6 {[%clk 0:00:28.3]} 34. g4 {[%clk 0:00:33.6]} 34...
hxg4 {[%clk 0:00:23.3]} 35. fxg4 {[%clk 0:00:34.5]} 35... Kf6 {[%clk 0:00:23.8]}
36. Nf4 {[%clk 0:00:34.7]} 36... Ndc8 {[%clk 0:00:16.4]} 37. Nd7+ {[%clk
0:00:34.4]} 37... Kf7 {[%clk 0:00:15.9]} 38. Nc5 {[%clk 0:00:35]} 38... Nd6
{[%clk 0:00:16.3]} 39. Nh3 {[%clk 0:00:30.1]} 39... Kf6 {[%clk 0:00:13.2]} 40.
Nf4 {[%clk 0:00:28.8]} 40... Kf7 {[%clk 0:00:13.4]} 41. h5 {[%clk 0:00:26.9]}
41... gxh5 {[%clk 0:00:13.1]} 42. gxh5 {[%clk 0:00:27.8]} 42... Nef5 {[%clk
0:00:13.2]} 43. Nce6 {[%clk 0:00:17.3]} 43... Ke7 {[%clk 0:00:09.9]} 44. Ng5
{[%clk 0:00:16.7]} 44... Ne8 {[%clk 0:00:09.9]} 45. Nf3 {[%clk 0:00:09]} 45...
Nf6 {[%clk 0:00:09.1]} 46. Ne5 {[%clk 0:00:09.7]} 46... Kd6 {[%clk 0:00:07.5]}
47. Nf7+ {[%clk 0:00:09.6]} 47... Ke7 {[%clk 0:00:07.7]} 48. Ng5 {[%clk
0:00:10.4]} 48... Kd6 {[%clk 0:00:06]} 49. Nf3 {[%clk 0:00:10.6]} 49... Ke7
{[%clk 0:00:05.4]} 50. Nd2 {[%clk 0:00:11.1]} 50... Kd6 {[%clk 0:00:05.8]} 51.
Nb3 {[%clk 0:00:11.8]} 51... b6 {[%clk 0:00:05.6]} 52. Nd2 {[%clk 0:00:12.1]}
52... Ng4 {[%clk 0:00:04.7]} 53. Nf3 {[%clk 0:00:11.9]} 53... Nfh6 {[%clk
0:00:04.6]} 54. Ng6 {[%clk 0:00:09.9]} 54... Nf6 {[%clk 0:00:05.1]} 55. Nf4
{[%clk 0:00:09.4]} 55... Nfg4 {[%clk 0:00:05.7]} 56. Ng5 {[%clk 0:00:10]} 56...
Nf6 {[%clk 0:00:05.6]} 57. Kd2 {[%clk 0:00:07.6]} 57... Nf5 {[%clk 0:00:05.7]}
58. Kc3 {[%clk 0:00:08.2]} 58... Nh6 {[%clk 0:00:05.8]} 59. Nf3 {[%clk
0:00:05.5]} 59... Nfg4 {[%clk 0:00:05.9]} 1/2-1/2

[Event "Late-Titled-Tuesday-Blitz-March-26-2024"]
[Site "Chess.com"]
[Date "2024.03.26"]
[Round "6"]
[White "aa175"]
[Black "XDPS"]
[Result "1-0"]
[WhiteElo "2759"]
[BlackElo "2899"]
[TimeControl "180+1"]
[EndTime "15:08:37 PDT"]
[Termination "aa175 won on time"]

1. d4 {[%clk 0:03:00.9]} 1... d5 {[%clk 0:02:59.6]} 2. Bf4 {[%clk 0:03:00.7]}
2... Nf6 {[%clk 0:02:58.8]} 3. e3 {[%clk 0:03:01.4]} 3... e6 {[%clk 0:02:59.5]}
4. Nf3 {[%clk 0:03:01.4]} 4... Bd6 {[%clk 0:03:00.1]} 5. Nbd2 {[%clk 0:03:01.7]}
5... O-O {[%clk 0:03:00.1]} 6. a3 {[%clk 0:03:01.4]} 6... c5 {[%clk 0:02:58.6]}
7. dxc5 {[%clk 0:02:50.5]} 7... Bxc5 {[%clk 0:02:58.5]} 8. c4 {[%clk 0:02:47.7]}
8... Nc6 {[%clk 0:02:57.7]} 9. Rc1 {[%clk 0:02:45.8]} 9... Be7 {[%clk
0:02:57.8]} 10. cxd5 {[%clk 0:02:29.8]} 10... exd5 {[%clk 0:02:57.3]} 11. Be2
{[%clk 0:02:11.6]} 11... Nh5 {[%clk 0:02:45.6]} 12. Bg3 {[%clk 0:02:05.5]} 12...
Nxg3 {[%clk 0:02:45.8]} 13. hxg3 {[%clk 0:02:05.6]} 13... Bf6 {[%clk 0:02:44.5]}
14. Qa4 {[%clk 0:01:59.7]} 14... h6 {[%clk 0:02:41]} 15. Qc2 {[%clk 0:01:30.2]}
15... Re8 {[%clk 0:02:35.5]} 16. Nb3 {[%clk 0:01:22.1]} 16... Bg4 {[%clk
0:02:06.1]} 17. O-O {[%clk 0:01:17.4]} 17... Rc8 {[%clk 0:02:03.7]} 18. Qb1
{[%clk 0:00:34.8]} 18... Qb6 {[%clk 0:02:01.7]} 19. Nbd4 {[%clk 0:00:32.1]}
19... Bxf3 {[%clk 0:01:17.1]} 20. Bxf3 {[%clk 0:00:31.2]} 20... Nxd4 {[%clk
0:01:17]} 21. exd4 {[%clk 0:00:30.2]} 21... Rxc1 {[%clk 0:01:16.8]} 22. Qxc1
{[%clk 0:00:25.2]} 22... Bxd4 {[%clk 0:01:17.2]} 23. Bxd5 {[%clk 0:00:24.4]}
23... Bxb2 {[%clk 0:01:07]} 24. Qc4 {[%clk 0:00:22.2]} 24... Rf8 {[%clk
0:00:59.8]} 25. Rb1 {[%clk 0:00:20.6]} 25... Qf6 {[%clk 0:00:56]} 26. Bxb7
{[%clk 0:00:02]} 26... Bxa3 {[%clk 0:00:55.9]} 27. Bf3 {[%clk 0:00:02.2]} 27...
Bb2 {[%clk 0:00:51.8]} 28. Qa2 {[%clk 0:00:02.1]} 28... Bd4 {[%clk 0:00:51.9]}
29. Rb7 {[%clk 0:00:01.9]} 29... Bb6 {[%clk 0:00:49.7]} 30. Bd5 {[%clk
0:00:01.8]} 30... g6 {[%clk 0:00:48.3]} 31. Bf3 {[%clk 0:00:01.5]} 31... h5
{[%clk 0:00:48.5]} 32. Kh2 {[%clk 0:00:02.1]} 32... Kg7 {[%clk 0:00:47]} 33. Qe2
{[%clk 0:00:02.8]} 33... h4 {[%clk 0:00:44]} 34. gxh4 {[%clk 0:00:02.4]} 34...
Qxh4+ {[%clk 0:00:44.9]} 35. Kg1 {[%clk 0:00:03.2]} 35... Rh8 {[%clk 0:00:45]}
36. Qe5+ {[%clk 0:00:02.8]} 36... Qf6 {[%clk 0:00:39.3]} 37. Qxf6+ {[%clk
0:00:03.2]} 37... Kxf6 {[%clk 0:00:40.2]} 38. Bd5 {[%clk 0:00:03.9]} 38... Rf8
{[%clk 0:00:37.7]} 39. Bc4 {[%clk 0:00:03.9]} 39... g5 {[%clk 0:00:35.8]} 40. g4
{[%clk 0:00:04.1]} 40... Kg6 {[%clk 0:00:34.9]} 41. Kg2 {[%clk 0:00:03.8]} 41...
Kf6 {[%clk 0:00:26.6]} 42. f3 {[%clk 0:00:03.3]} 42... Be3 {[%clk 0:00:23.3]}
43. Kg3 {[%clk 0:00:03.4]} 43... a5 {[%clk 0:00:21.8]} 44. Rb5 {[%clk
0:00:02.9]} 44... Bd2 {[%clk 0:00:19.2]} 45. Rb6+ {[%clk 0:00:02.2]} 45... Kg7
{[%clk 0:00:19.1]} 46. Rb7 {[%clk 0:00:02.3]} 46... Bf4+ {[%clk 0:00:16.6]} 47.
Kg2 {[%clk 0:00:02.2]} 47... Kg6 {[%clk 0:00:16.1]} 48. Rb6+ {[%clk 0:00:02]}
48... f6 {[%clk 0:00:15.9]} 49. Rb7 {[%clk 0:00:02.6]} 49... Rd8 {[%clk
0:00:14.8]} 50. Be6 {[%clk 0:00:02.1]} 50... Rd2+ {[%clk 0:00:09.4]} 51. Kf1
{[%clk 0:00:02.7]} 51... f5 {[%clk 0:00:05.2]} 52. gxf5+ {[%clk 0:00:03.1]}
52... Kf6 {[%clk 0:00:06.1]} 53. Ra7 {[%clk 0:00:03]} 53... Rd1+ {[%clk
0:00:04.8]} 54. Ke2 {[%clk 0:00:03.1]} 54... Ra1 {[%clk 0:00:05.7]} 55. Ra6
{[%clk 0:00:02.7]} 55... Ke5 {[%clk 0:00:06.3]} 56. Bd7 {[%clk 0:00:02.9]} 56...
Ra2+ {[%clk 0:00:06.5]} 57. Ke1 {[%clk 0:00:02.8]} 57... Bg3+ {[%clk 0:00:07]}
58. Kf1 {[%clk 0:00:02.9]} 58... Rf2+ {[%clk 0:00:06.3]} 59. Kg1 {[%clk
0:00:02.4]} 59... Rxf3 {[%clk 0:00:06.8]} 60. Rxa5+ {[%clk 0:00:01.9]} 60... Kf6
{[%clk 0:00:07.5]} 61. Ra6+ {[%clk 0:00:02.2]} 61... Ke5 {[%clk 0:00:07.2]} 62.
Kg2 {[%clk 0:00:02.7]} 62... Rc3 {[%clk 0:00:07]} 63. f6 {[%clk 0:00:03.2]} 1-0

[Event "Late-Titled-Tuesday-Blitz-March-26-2024"]
[Site "Chess.com"]
[Date "2024.03.26"]
[Round "6"]
[White "Payyappat"]
[Black "RandomNoob04"]
[Result "0-1"]
[WhiteElo "2524"]
[BlackElo "2677"]
[TimeControl "180+1"]
[EndTime "15:08:42 PDT"]
[Termination "RandomNoob04 won by resignation"]

1. e4 {[%clk 0:03:00.9]} 1... d5 {[%clk 0:02:59.2]} 2. exd5 {[%clk 0:02:59.8]}
2... Qxd5 {[%clk 0:03:00.1]} 3. d4 {[%clk 0:03:00.1]} 3... Nc6 {[%clk
0:02:59.7]} 4. Nf3 {[%clk 0:03:00.2]} 4... Bg4 {[%clk 0:03:00.4]} 5. Be2 {[%clk
0:02:59.3]} 5... O-O-O {[%clk 0:03:01.1]} 6. Be3 {[%clk 0:02:58.5]} 6... e5
{[%clk 0:03:00.3]} 7. Nc3 {[%clk 0:02:54.2]} 7... Qa5 {[%clk 0:02:54.5]} 8. d5
{[%clk 0:02:52.1]} 8... Nge7 {[%clk 0:02:46.7]} 9. Nxe5 {[%clk 0:02:35.8]} 9...
Bxe2 {[%clk 0:02:31.4]} 10. Nxc6 {[%clk 0:02:34.3]} 10... Nxc6 {[%clk
0:01:50.5]} 11. Qxe2 {[%clk 0:02:32.6]} 11... Rxd5 {[%clk 0:01:50.3]} 12. O-O
{[%clk 0:02:17.7]} 12... Re5 {[%clk 0:01:49.2]} 13. Rad1 {[%clk 0:02:12]} 13...
Bb4 {[%clk 0:01:45.9]} 14. Qg4+ {[%clk 0:02:09.9]} 14... Kb8 {[%clk 0:01:30.7]}
15. Qxg7 {[%clk 0:02:08.2]} 15... Rhe8 {[%clk 0:01:31.4]} 16. Bf4 {[%clk
0:01:58.2]} 16... Bxc3 {[%clk 0:01:28.8]} 17. bxc3 {[%clk 0:01:55.9]} 17... Rf5
{[%clk 0:01:26]} 18. Bg3 {[%clk 0:01:52.4]} 18... h5 {[%clk 0:01:13.1]} 19. Rd7
{[%clk 0:01:43.4]} 19... Ne5 {[%clk 0:01:04.9]} 20. Bxe5 {[%clk 0:01:31.2]}
20... Rfxe5 {[%clk 0:01:05.8]} 21. Qxf7 {[%clk 0:01:29.9]} 21... Qxc3 {[%clk
0:01:04.8]} 22. h3 {[%clk 0:01:26.2]} 22... a6 {[%clk 0:00:54.5]} 23. Rd5 {[%clk
0:01:11.2]} 23... Qxc2 {[%clk 0:00:38.6]} 24. Rxe5 {[%clk 0:01:08.5]} 24... Rxe5
{[%clk 0:00:39.5]} 25. Qf6 {[%clk 0:00:52.1]} 25... Rc5 {[%clk 0:00:37.2]} 26.
Re1 {[%clk 0:00:46.2]} 26... Ka7 {[%clk 0:00:34.1]} 27. Qd4 {[%clk 0:00:45.3]}
27... b6 {[%clk 0:00:33.6]} 28. Re7 {[%clk 0:00:43.4]} 28... Qxa2 {[%clk
0:00:29.6]} 29. Qd8 {[%clk 0:00:42.7]} 29... Qc2 {[%clk 0:00:21.9]} 30. g3
{[%clk 0:00:33.9]} 30... a5 {[%clk 0:00:05.3]} 31. Qc8 {[%clk 0:00:28.3]} 31...
Qd1+ {[%clk 0:00:05.1]} 32. Kh2 {[%clk 0:00:27.8]} 32... Qf3 {[%clk 0:00:04.8]}
33. Rxc7+ {[%clk 0:00:26]} 33... Rxc7 {[%clk 0:00:05.4]} 34. Qxc7+ {[%clk
0:00:26.8]} 34... Ka6 {[%clk 0:00:04.7]} 35. Qc8+ {[%clk 0:00:23.8]} 35... Ka7
{[%clk 0:00:05.3]} 36. Qd7+ {[%clk 0:00:23.6]} 36... Ka6 {[%clk 0:00:05.2]} 37.
Qc8+ {[%clk 0:00:23.2]} 37... Kb5 {[%clk 0:00:05.8]} 38. Qe8+ {[%clk 0:00:18]}
38... Kb4 {[%clk 0:00:05.6]} 39. Qe1+ {[%clk 0:00:15]} 39... Ka4 {[%clk
0:00:05.7]} 40. Qa1+ {[%clk 0:00:14.4]} 40... Kb4 {[%clk 0:00:05.9]} 41. Qb2+
{[%clk 0:00:13.8]} 41... Kc5 {[%clk 0:00:06.2]} 42. Qc2+ {[%clk 0:00:09.7]}
42... Kb5 {[%clk 0:00:06.6]} 43. Qb2+ {[%clk 0:00:09.8]} 43... Kc5 {[%clk
0:00:07]} 44. Kg1 {[%clk 0:00:09.2]} 44... b5 {[%clk 0:00:06.1]} 45. Qe5+ {[%clk
0:00:07.9]} 45... Kb4 {[%clk 0:00:05.8]} 46. Qd6+ {[%clk 0:00:07.6]} 46... Ka4
{[%clk 0:00:06.1]} 47. Qd7 {[%clk 0:00:06.5]} 47... Kb4 {[%clk 0:00:03.4]} 48.
g4 {[%clk 0:00:06.6]} 48... hxg4 {[%clk 0:00:03.4]} 49. hxg4 {[%clk 0:00:07.5]}
49... a4 {[%clk 0:00:03.7]} 50. g5 {[%clk 0:00:07.2]} 50... a3 {[%clk
0:00:03.7]} 51. Qd4+ {[%clk 0:00:03.5]} 51... Kb3 {[%clk 0:00:03.5]} 52. g6
{[%clk 0:00:03.7]} 52... a2 {[%clk 0:00:03.3]} 53. g7 {[%clk 0:00:03.3]} 53...
Qf7 {[%clk 0:00:01.3]} 54. Qd3+ {[%clk 0:00:01.8]} 54... Ka4 {[%clk 0:00:01.4]}
55. Qd4+ {[%clk 0:00:01.7]} 55... Ka3 {[%clk 0:00:01.7]} 56. Qc3+ {[%clk
0:00:01.7]} 56... Ka4 {[%clk 0:00:01.8]} 57. Qd4+ {[%clk 0:00:02.1]} 57... b4
{[%clk 0:00:02.4]} 58. Qa7+ {[%clk 0:00:02.3]} 58... Qxa7 {[%clk 0:00:01.5]} 59.
g8=Q {[%clk 0:00:02.6]} 59... a1=Q+ {[%clk 0:00:01.9]} 60. Kh2 {[%clk
0:00:03.1]} 60... Q1d4 {[%clk 0:00:02.5]} 61. Qa2+ {[%clk 0:00:02.7]} 61... Kb5
{[%clk 0:00:03.4]} 62. Qe2+ {[%clk 0:00:02.5]} 62... Qc4 {[%clk 0:00:04]} 63.
Qe5+ {[%clk 0:00:02.7]} 63... Qcc5 {[%clk 0:00:04.6]} 64. Qe2+ {[%clk
0:00:02.9]} 64... Kb6 {[%clk 0:00:05.3]} 65. Qe6+ {[%clk 0:00:03.1]} 65... Kb7
{[%clk 0:00:05.3]} 66. Qd7+ {[%clk 0:00:03.1]} 66... Qc7+ {[%clk 0:00:05.7]} 67.
Qxc7+ {[%clk 0:00:03.6]} 67... Kxc7 {[%clk 0:00:06.6]} 0-1

[Event "Late-Titled-Tuesday-Blitz-March-26-2024"]
[Site "Chess.com"]
[Date "2024.03.26"]
[Round "6"]
[White "Mikhail_Bryakin"]
[Black "Jospem"]
[Result "1-0"]
[WhiteElo "2880"]
[BlackElo "3076"]
[TimeControl "180+1"]
[EndTime "15:08:46 PDT"]
[Termination "Mikhail_Bryakin won by resignation"]

1. c4 {[%clk 0:03:00.9]} 1... c5 {[%clk 0:02:58.5]} 2. Nc3 {[%clk 0:02:56.8]}
2... Nc6 {[%clk 0:02:58]} 3. g3 {[%clk 0:02:57.3]} 3... g6 {[%clk 0:02:58.3]} 4.
Bg2 {[%clk 0:02:57.8]} 4... Bg7 {[%clk 0:02:58.7]} 5. Nf3 {[%clk 0:02:57.7]}
5... d6 {[%clk 0:02:58.3]} 6. O-O {[%clk 0:02:55.4]} 6... e6 {[%clk 0:02:52.8]}
7. e4 {[%clk 0:02:52.8]} 7... Nge7 {[%clk 0:02:51.7]} 8. d3 {[%clk 0:02:52.6]}
8... O-O {[%clk 0:02:52.1]} 9. Be3 {[%clk 0:02:51.1]} 9... Nd4 {[%clk
0:02:52.5]} 10. Rb1 {[%clk 0:02:36.1]} 10... Nec6 {[%clk 0:02:52.3]} 11. Ne2
{[%clk 0:02:32.7]} 11... Nxf3+ {[%clk 0:02:49.9]} 12. Bxf3 {[%clk 0:02:32.7]}
12... b6 {[%clk 0:02:48.1]} 13. Bg2 {[%clk 0:02:20.4]} 13... Bb7 {[%clk
0:02:45.5]} 14. Qd2 {[%clk 0:02:20.8]} 14... Ne5 {[%clk 0:02:42.1]} 15. h3
{[%clk 0:02:15.5]} 15... d5 {[%clk 0:02:39.4]} 16. f4 {[%clk 0:02:12.5]} 16...
Nc6 {[%clk 0:02:23.1]} 17. cxd5 {[%clk 0:01:42.1]} 17... exd5 {[%clk 0:02:24]}
18. e5 {[%clk 0:01:42.7]} 18... d4 {[%clk 0:02:24.3]} 19. Bf2 {[%clk 0:01:43.4]}
19... Qd7 {[%clk 0:02:24.7]} 20. Kh2 {[%clk 0:01:28.3]} 20... Rae8 {[%clk
0:02:20.6]} 21. Rbe1 {[%clk 0:01:27.2]} 21... Nb4 {[%clk 0:02:17.8]} 22. a3
{[%clk 0:01:23.8]} 22... Bxg2 {[%clk 0:02:17]} 23. Kxg2 {[%clk 0:01:24.7]} 23...
Qb7+ {[%clk 0:02:11.3]} 24. Kh2 {[%clk 0:01:24.3]} 24... Nd5 {[%clk 0:02:08.2]}
25. Ng1 {[%clk 0:01:24.4]} 25... f6 {[%clk 0:02:02.1]} 26. exf6 {[%clk
0:01:21.4]} 26... Nxf6 {[%clk 0:02:03]} 27. Rxe8 {[%clk 0:01:20.6]} 27... Nxe8
{[%clk 0:02:03]} 28. Qe2 {[%clk 0:01:17.6]} 28... Nf6 {[%clk 0:02:02.2]} 29. Re1
{[%clk 0:01:16]} 29... Kh8 {[%clk 0:01:54.3]} 30. Nf3 {[%clk 0:01:14.2]} 30...
Qd5 {[%clk 0:01:42.4]} 31. Ng5 {[%clk 0:01:03]} 31... h6 {[%clk 0:01:39.3]} 32.
Ne4 {[%clk 0:00:51.3]} 32... Re8 {[%clk 0:01:20.4]} 33. Kg1 {[%clk 0:00:48.2]}
33... Qc6 {[%clk 0:01:10]} 34. b3 {[%clk 0:00:40.2]} 34... a5 {[%clk 0:01:07.3]}
35. a4 {[%clk 0:00:39.4]} 35... Nd5 {[%clk 0:01:05.7]} 36. Qf3 {[%clk
0:00:35.5]} 36... Nb4 {[%clk 0:01:03.5]} 37. Kf1 {[%clk 0:00:27.3]} 37... Qd5
{[%clk 0:00:51.9]} 38. Qd1 {[%clk 0:00:27.9]} 38... Qf5 {[%clk 0:00:45.8]} 39.
Kg2 {[%clk 0:00:27.3]} 39... Re7 {[%clk 0:00:45.6]} 40. Qd2 {[%clk 0:00:23.4]}
40... Qd5 {[%clk 0:00:44]} 41. Qd1 {[%clk 0:00:23.5]} 41... Qc6 {[%clk
0:00:43.9]} 42. Kg1 {[%clk 0:00:23.2]} 42... Nd5 {[%clk 0:00:44.1]} 43. Qf3
{[%clk 0:00:21.3]} 43... Nc3 {[%clk 0:00:44.3]} 44. Nd2 {[%clk 0:00:19.7]} 44...
Rxe1+ {[%clk 0:00:32.9]} 45. Bxe1 {[%clk 0:00:20.6]} 45... Qxf3 {[%clk
0:00:32.7]} 46. Nxf3 {[%clk 0:00:21.5]} 46... Ne2+ {[%clk 0:00:33.4]} 47. Kf1
{[%clk 0:00:16.4]} 47... Nc1 {[%clk 0:00:34.3]} 48. Nd2 {[%clk 0:00:15.6]} 48...
Nxd3 {[%clk 0:00:31.9]} 49. Nc4 {[%clk 0:00:13.3]} 49... Nc1 {[%clk 0:00:29.6]}
50. Nxb6 {[%clk 0:00:13.4]} 50... Nxb3 {[%clk 0:00:30.1]} 51. Nc4 {[%clk
0:00:14.1]} 51... d3 {[%clk 0:00:29]} 52. Bxa5 {[%clk 0:00:14.4]} 52... Kg8
{[%clk 0:00:21.6]} 53. Bd2 {[%clk 0:00:14.3]} 53... Nxd2+ {[%clk 0:00:19.5]} 54.
Nxd2 {[%clk 0:00:14.3]} 54... Bc3 {[%clk 0:00:20.4]} 55. Nc4 {[%clk 0:00:13.2]}
55... Kf7 {[%clk 0:00:17.7]} 56. a5 {[%clk 0:00:13.8]} 56... Ke6 {[%clk
0:00:14.7]} 57. a6 {[%clk 0:00:13.8]} 57... Kd5 {[%clk 0:00:15.6]} 58. a7 {[%clk
0:00:14.4]} 58... Kxc4 {[%clk 0:00:16.1]} 59. a8=Q {[%clk 0:00:15.1]} 59... Bb4
{[%clk 0:00:14.7]} 60. Qa2+ {[%clk 0:00:11.1]} 60... Kd4 {[%clk 0:00:12.1]} 61.
Qb3 {[%clk 0:00:10.2]} 61... Bd2 {[%clk 0:00:09.8]} 62. Kf2 {[%clk 0:00:08.4]}
62... Bb4 {[%clk 0:00:09.2]} 63. Kf3 {[%clk 0:00:08.4]} 63... Bc3 {[%clk
0:00:07.8]} 64. g4 {[%clk 0:00:08.4]} 64... Bb4 {[%clk 0:00:05.5]} 65. f5 {[%clk
0:00:08.3]} 65... gxf5 {[%clk 0:00:06.4]} 66. gxf5 {[%clk 0:00:09.2]} 66... Ke5
{[%clk 0:00:06.8]} 67. Qxd3 {[%clk 0:00:09.5]} 1-0